fUST/lending_fUST_20251028
["ID","MTS","AMOUNT","RATE_DAILY","PERIOD"]
[392527219,1761608495309,-500.0,0.00018689,2]
[392527220,1761608495340,-464.92186607,0.00018689,2]
[392527221,1761608495521,-70.16626786,0.00018689,2]
[392527222,1761608495553,-500.0,0.00018689,2]
[392527223,1761608495587,-500.0,0.00018689,2]
[392527224,1761608495621,-500.0,0.00018689,2]
[392527225,1761608495655,-500.0,0.00018689,2]
[392527226,1761608495687,-500.0,0.00018689,2]
[392527227,1761608495717,-500.0,0.00018689,2]
[392527228,1761608495751,-500.0,0.00018689,2]
[392527229,1761608495784,-500.0,0.00018689,2]
[392527230,1761608495818,-500.0,0.00018689,2]
[392527231,1761608495851,-359.67746428,0.00018689,2]
[392527232,1761608496039,-140.32253572,0.00018689,2]
[392527233,1761608496077,-500.0,0.00018689,2]
[392527234,1761608496112,-500.0,0.00018689,2]
[392527235,1761608496145,-500.0,0.00018689,2]
[392527236,1761608496176,-245.0,0.00018689,2]
[392527237,1761608496204,-157.18933822,0.00018689,2]
[392527238,1761608498836,-2668.64581243,0.0001869,2]
[392527239,1761608498867,-10000.01,0.0001869,2]
[392527240,1761608498887,-10000.01,0.0001869,2]
[392527241,1761608498907,-10000.01,0.0001869,2]
[392527242,1761608526720,500.0,0.00015224,2]
[392527243,1761608526959,500.0,0.00015529,2]
[392527254,1761608644830,355.22,0.00030137,120]
[392527255,1761608733162,168.645905,0.00030137,120]
[392527258,1761608780771,442.6,0.0003013,120]
[392527268,1761608886342,5000.0,0.0001825,9]
[392527269,1761608894629,5000.0,0.0001825,9]
[392527270,1761608902772,2461.96747983,0.0001825,9]
[392527271,1761608911195,5000.0,0.0001825,9]
[392527272,1761608919302,5000.0,0.0001825,9]
[392527273,1761608934731,5000.0,0.0001709,2]
[392527275,1761608942619,4000.01,0.0001709,2]
[392527276,1761608942647,999.99,0.0001709,2]
[392527277,1761608951106,1541.71783507,0.0001709,2]
[392527278,1761608958956,5000.0,0.00016919,2]
[392527279,1761608966965,5000.0,0.00016919,2]
[392527280,1761608982631,0.01,0.00016919,2]
[392527281,1761608982659,4999.99,0.00016919,2]
[392527283,1761608990596,5000.0,0.00016919,2]
[392527284,1761609024589,-1963.0,0.00016872,2]
[392527311,1761609032382,-1963.0,0.00017042,2]
[392527312,1761609032391,-412.0,0.00017214,2]
[392527313,1761609032401,-1551.0,0.00017214,2]
[392527314,1761609032410,-685.69950298,0.00017386,2]
[392527316,1761609032420,-849.2495586,0.00017559,2]
[392527318,1761609032429,-151.0,0.00018062,2]
[392527320,1761609032439,-1200.0,0.00018314,2]
[392527322,1761609032448,-156.88870807,0.00018316,2]
[392527324,1761609032458,-403.5761775,0.00018368,2]
[392527326,1761609032467,-156.88870807,0.00018435,2]
[392527328,1761609032476,-151.0,0.00018578,2]
[392527330,1761609032484,-477.41591086,0.00018588,2]
[392527332,1761609032494,-300.0,0.00018599,2]
[392527334,1761609032503,-16921.08652926,0.000186,2]
[392527336,1761609032513,-500.0,0.00018689,2]
[392527338,1761609032522,-500.0,0.00018689,2]
[392527340,1761609032531,-500.0,0.00018689,2]
[392527342,1761609032540,-170.56534822,0.00018689,2]
[392527344,1761609032550,-222.19908021,0.00018689,2]
[392527346,1761609032559,-500.0,0.00018689,2]
[392527348,1761609032568,-500.0,0.00018689,2]
[392527350,1761609032578,-154.03016157,0.00018689,2]
[392527352,1761609032587,-122718.84203091,0.0001869,2]
[392527354,1761609032598,-37793.03806682,0.0001869,2]
[392527357,1761609036638,5000.0,0.00016872,2]
[392527468,1761609040605,-3019.04,0.0001869,2]
[392527478,1761609046723,-173800.40408984,0.0001869,2]
[392527479,1761609046733,-500.0,0.000187,2]
[392527480,1761609046744,-500.0,0.000187,2]
[392527481,1761609046755,-500.0,0.000187,2]
[392527482,1761609046765,-500.0,0.000187,2]
[392527483,1761609046775,-500.0,0.000187,2]
[392527484,1761609046784,-500.0,0.000187,2]
[392527485,1761609046794,-418.63082869,0.000187,2]
[392527486,1761609046804,-500.0,0.000187,2]
[392527487,1761609046814,-500.0,0.000187,2]
[392527488,1761609046823,-500.0,0.000187,2]
[392527489,1761609046833,-500.0,0.000187,2]
[392527490,1761609046843,-500.0,0.000187,2]
[392527491,1761609046852,-500.0,0.000187,2]
[392527492,1761609046862,-500.0,0.000187,2]
[392527493,1761609046872,-500.0,0.000187,2]
[392527494,1761609046881,-500.0,0.000187,2]
[392527495,1761609046891,-500.0,0.000187,2]
[392527496,1761609046900,-500.0,0.000187,2]
[392527497,1761609046910,-500.0,0.000187,2]
[392527498,1761609046920,-462.0,0.00018738,2]
[392527499,1761609046929,-500.0,0.00018765,9]
[392527500,1761609046939,-462.0,0.00018782,2]
[392527501,1761609046948,-29589.9257884,0.0001879,2]
[392527502,1761609046958,-462.0,0.0001882,2]
[392527503,1761609046967,-462.0,0.00018857,2]
[392527504,1761609046977,-284.73777222,0.00018886,2]
[392527505,1761609046986,-352.0,0.00018914,2]
[392527506,1761609046996,-500.0,0.00019039,9]
[392527507,1761609047005,-300.0,0.00019061,2]
[392527508,1761609047016,-300.0,0.00019061,2]
[392527509,1761609047026,-300.0,0.00019061,2]
[392527510,1761609047036,-300.0,0.00019061,2]
[392527511,1761609047045,-300.0,0.00019061,2]
[392527512,1761609047054,-300.0,0.00019061,2]
[392527513,1761609047063,-300.0,0.00019061,2]
[392527514,1761609047073,-300.0,0.00019061,2]
[392527515,1761609047083,-300.0,0.00019061,2]
[392527516,1761609047092,-300.0,0.00019061,2]
[392527517,1761609047102,-300.0,0.00019061,2]
[392527518,1761609047111,-300.0,0.00019061,2]
[392527519,1761609047124,-300.0,0.00019061,2]
[392527520,1761609047133,-300.0,0.00019061,2]
[392527521,1761609047143,-300.0,0.00019061,2]
[392527522,1761609047152,-600.0,0.00019061,2]
[392527523,1761609047163,-604.743,0.00019071,2]
[392527524,1761609047172,-462.0,0.00019082,2]
[392527525,1761609047182,-151.0,0.00019094,2]
[392527526,1761609047192,-691.39507789,0.00019115,2]
[392527527,1761609047202,-462.0,0.00019148,2]
[392527528,1761609047211,-462.0,0.00019152,2]
[392527529,1761609047221,-1146.0,0.00019235,2]
[392527530,1761609047230,-500.0,0.00019235,2]
[392527531,1761609047240,-816.0,0.00019235,2]
[392527532,1761609047251,-151.0,0.00019235,2]
[392527533,1761609047261,-151.0,0.00019235,2]
[392527534,1761609047270,-500.0,0.00019235,2]
[392527535,1761609047282,-151.0,0.00019235,2]
[392527536,1761609047292,-1000.0,0.00019248,2]
[392527537,1761609047302,-514.65244479,0.00019248,2]
[392527538,1761609047313,-1000.0,0.00019248,2]
[392527539,1761609047323,-648.1649969,0.00019248,2]
[392527540,1761609047332,-1000.0,0.00019248,2]
[392527541,1761609047343,-575.89367739,0.00019248,2]
[392527542,1761609047352,-1000.0,0.00019248,2]
[392527543,1761609047364,-1000.0,0.00019248,2]
[392527544,1761609047374,-1035.18474865,0.00019248,2]
[392527545,1761609047384,-500.0,0.00019248,2]
[392527546,1761609047394,-500.0,0.00019248,2]
[392527547,1761609047403,-500.0,0.00019248,2]
[392527548,1761609047412,-1000.0,0.00019248,2]
[392527549,1761609047422,-1146.0,0.0001929,2]
[392527550,1761609047432,-553.79035286,0.0001929,2]
[392527551,1761609047441,-816.0,0.0001929,2]
[392527552,1761609047452,-151.0,0.0001929,2]
[392527553,1761609047462,-151.0,0.0001929,2]
[392527554,1761609047473,-500.0,0.0001929,2]
[392527555,1761609047484,-151.0,0.0001929,2]
[392527556,1761609047495,-168.0,0.00019315,2]
[392527557,1761609047505,-462.0,0.00019322,2]
[392527558,1761609047514,-1146.0,0.00019345,2]
[392527559,1761609047524,-816.0,0.00019345,2]
[392527560,1761609047533,-151.0,0.00019345,2]
[392527561,1761609047544,-151.0,0.00019345,2]
[392527562,1761609047555,-500.0,0.00019345,2]
[392527563,1761609047565,-809.12541351,0.00019386,2]
[392527564,1761609047575,-1146.0,0.00019399,2]
[392527565,1761609047584,-816.0,0.00019399,2]
[392527566,1761609047594,-151.0,0.00019399,2]
[392527567,1761609047603,-206.56955523,0.00019399,2]
[392527568,1761609047612,-500.0,0.00019399,2]
[392527569,1761609047621,-1146.0,0.00019454,2]
[392527570,1761609047631,-816.0,0.00019454,2]
[392527571,1761609047641,-151.0,0.00019454,2]
[392527572,1761609047655,-500.0,0.00019454,2]
[392527573,1761609047665,-477.41591086,0.0001948,2]
[392527574,1761609047675,-462.0,0.00019504,2]
[392527575,1761609047686,-1146.0,0.00019509,2]
[392527576,1761609047696,-816.0,0.00019509,2]
[392527577,1761609047706,-191.82283443,0.00019509,2]
[392527578,1761609047716,-500.0,0.00019509,2]
[392527579,1761609047726,-462.0,0.00019524,2]
[392527580,1761609047736,-1562.0,0.00019559,2]
[392527581,1761609047746,-1146.0,0.00019564,2]
[392527582,1761609047755,-816.0,0.00019564,2]
[392527583,1761609047765,-500.0,0.00019564,2]
[392527584,1761609047775,-462.0,0.00019593,2]
[392527585,1761609047784,-462.0,0.00019599,2]
[392527586,1761609047794,-151.0,0.0001961,2]
[392527587,1761609047803,-462.0,0.00019615,2]
[392527588,1761609047813,-1146.0,0.00019619,2]
[392527589,1761609047823,-816.0,0.00019619,2]
[392527590,1761609047832,-500.0,0.00019619,2]
[392527591,1761609047843,-1146.0,0.00019673,2]
[392527592,1761609047852,-816.0,0.00019673,2]
[392527593,1761609047861,-500.0,0.00019673,2]
[392527594,1761609047871,-523.20952375,0.00019683,2]
[392527595,1761609047880,-462.0,0.00019699,2]
[392527596,1761609047889,-1146.0,0.00019728,2]
[392527597,1761609047899,-816.0,0.00019728,2]
[392527598,1761609047909,-297.75378958,0.00019728,2]
[392527599,1761609047918,-462.0,0.00019772,2]
[392527600,1761609047928,-1146.0,0.00019783,2]
[392527601,1761609047938,-816.0,0.00019783,2]
[392527602,1761609047948,-151.0,0.00019783,2]
[392527603,1761609047957,-500.0,0.00019783,2]
[392527604,1761609047967,-500.0,0.00019783,2]
[392527605,1761609047977,-500.0,0.00019783,2]
[392527606,1761609047986,-500.0,0.00019783,2]
[392527607,1761609047995,-500.0,0.00019783,2]
[392527608,1761609048005,-500.0,0.00019783,2]
[392527609,1761609048015,-500.0,0.00019783,2]
[392527610,1761609048024,-168.0,0.00019784,2]
[392527611,1761609048033,-1500.0,0.00019796,2]
[392527612,1761609048043,-1500.0,0.00019796,2]
[392527613,1761609048052,-1500.0,0.00019796,2]
[392527614,1761609048061,-1146.0,0.00019838,2]
[392527615,1761609048071,-816.0,0.00019838,2]
[392527616,1761609048081,-242.86505871,0.00019838,2]
[392527617,1761609048090,-500.0,0.00019838,2]
[392527618,1761609048099,-500.0,0.00019838,2]
[392527619,1761609048108,-500.0,0.00019838,2]
[392527620,1761609048117,-500.0,0.00019838,2]
[392527621,1761609048131,-500.0,0.00019838,2]
[392527622,1761609048140,-500.0,0.00019838,2]
[392527623,1761609048150,-1562.0,0.00019872,2]
[392527624,1761609048160,-1146.0,0.00019893,2]
[392527625,1761609048172,-816.0,0.00019893,2]
[392527626,1761609048182,-500.0,0.00019893,2]
[392527627,1761609048191,-500.0,0.00019893,2]
[392527628,1761609048203,-500.0,0.00019893,2]
[392527629,1761609048213,-500.0,0.00019893,2]
[392527630,1761609048222,-500.0,0.00019893,2]
[392527631,1761609048232,-500.0,0.00019893,2]
[392527632,1761609048242,-1146.0,0.00019947,2]
[392527633,1761609048251,-816.0,0.00019947,2]
[392527634,1761609048261,-500.0,0.00019947,2]
[392527635,1761609048270,-500.0,0.00019947,2]
[392527636,1761609048279,-362.89646118,0.00019947,2]
[392527637,1761609048289,-500.0,0.00019947,2]
[392527638,1761609048299,-500.0,0.00019947,2]
[392527639,1761609048309,-500.0,0.00019947,2]
[392527640,1761609048318,-462.0,0.00019951,2]
[392527641,1761609048328,-1146.0,0.00020002,2]
[392527642,1761609048337,-816.0,0.00020002,2]
[392527643,1761609048346,-345.53490704,0.00020002,2]
[392527644,1761609048356,-500.0,0.00020002,2]
[392527645,1761609048365,-500.0,0.00020002,2]
[392527646,1761609048374,-500.0,0.00020002,2]
[392527647,1761609048384,-500.0,0.00020002,2]
[392527648,1761609048394,-500.0,0.00020002,2]
[392527649,1761609048403,-462.0,0.00020035,2]
[392527650,1761609048413,-1146.0,0.00020057,2]
[392527651,1761609048422,-816.0,0.00020057,2]
[392527652,1761609048432,-500.0,0.00020057,2]
[392527653,1761609048441,-500.0,0.00020057,2]
[392527654,1761609048451,-500.0,0.00020057,2]
[392527655,1761609048460,-522.65942269,0.00020057,2]
[392527656,1761609048470,-184.70925753,0.00020057,2]
[392527657,1761609048480,-462.0,0.00020088,2]
[392527658,1761609048489,-1146.0,0.00020112,2]
[392527659,1761609048499,-816.0,0.00020112,2]
[392527660,1761609048508,-593.1046087,0.00020112,2]
[392527661,1761609048518,-500.0,0.00020112,2]
[392527662,1761609048528,-497.15385409,0.00020112,2]
[392527663,1761609048537,-151.0,0.00020126,2]
[392527664,1761609048547,-462.0,0.00020164,2]
[392527665,1761609048556,-1146.0,0.00020167,2]
[392527666,1761609048566,-816.0,0.00020167,2]
[392527667,1761609048576,-500.0,0.00020167,2]
[392527668,1761609048587,-1146.0,0.00020221,2]
[392527669,1761609048598,-816.0,0.00020221,2]
[392527670,1761609048608,-500.0,0.00020221,2]
[392527671,1761609048619,-180.00540016,0.00020264,2]
[392527672,1761609048629,-1146.0,0.00020276,2]
[392527673,1761609048639,-816.0,0.00020276,2]
[392527674,1761609048648,-500.0,0.00020276,2]
[392527675,1761609048658,-420.0,0.00020281,2]
[392527676,1761609048667,-462.0,0.00020284,2]
[392527677,1761609048677,-462.0,0.00020295,2]
[392527678,1761609048689,-1146.0,0.00020331,2]
[392527679,1761609048698,-816.0,0.00020331,2]
[392527680,1761609048708,-500.0,0.00020331,2]
[392527681,1761609048717,-2000.0,0.00020344,2]
[392527682,1761609048730,-477.41591086,0.00020372,2]
[392527683,1761609048740,-1146.0,0.00020386,2]
[392527684,1761609048749,-816.0,0.00020386,2]
[392527685,1761609048759,-500.0,0.00020386,2]
[392527686,1761609048768,-1146.0,0.0002044,2]
[392527687,1761609048778,-816.0,0.0002044,2]
[392527688,1761609048788,-500.0,0.00020441,2]
[392527689,1761609048798,-393.3966097,0.00020468,2]
[392527690,1761609048807,-393.3966097,0.00020468,2]
[392527691,1761609048817,-392.8234807,0.00020468,2]
[392527692,1761609048827,-1148.52111619,0.00020495,2]
[392527693,1761609048836,-816.0,0.00020495,2]
[392527694,1761609048845,-188.0,0.00020495,2]
[392527695,1761609048855,-228.0,0.00020521,3]
[392527696,1761609048865,-151.0,0.00020642,2]
[392527697,1761609048874,-1973.62106123,0.00020892,2]
[392527698,1761609048885,-720.0,0.00020967,2]
[392527699,1761609048894,-151.0,0.00021159,2]
[392527700,1761609048903,-477.41591086,0.00021264,2]
[392527701,1761609048913,-428.0,0.000213,2]
[392527702,1761609048922,-2034.97601651,0.00021302,2]
[392527703,1761609048933,-932.55132405,0.00021386,2]
[392527704,1761609048942,-2034.97601651,0.0002141,2]
[392527705,1761609048952,-176.0,0.00021616,5]
[392527706,1761609048962,-395.7927574,0.00021631,2]
[392527707,1761609048973,-210.5257767,0.00021634,2]
[392527708,1761609048983,-151.0,0.00021675,2]
[392527709,1761609048994,-12350.91886749,0.00021817,2]
[392527710,1761609049004,-527211.40831965,0.000219,2]
[392527711,1761609049024,-8559.06499927,0.000219,2]
[392527712,1761609049035,-151.0,0.000219,7]
[392527713,1761609049044,-500.0,0.00021917,2]
[392527714,1761609049054,-500.0,0.00021917,2]
[392527715,1761609049063,-500.0,0.00021917,2]
[392527716,1761609049075,-500.0,0.00021917,2]
[392527717,1761609049086,-500.0,0.00021917,2]
[392527718,1761609049097,-500.0,0.00021917,2]
[392527719,1761609049108,-500.0,0.00021917,2]
[392527720,1761609049118,-500.0,0.00021917,2]
[392527721,1761609049133,-500.0,0.00021917,2]
[392527722,1761609049142,-500.0,0.00021917,2]
[392527723,1761609049151,-500.0,0.00021917,2]
[392527724,1761609049161,-500.0,0.00021917,2]
[392527725,1761609049170,-500.0,0.00021917,2]
[392527726,1761609049179,-500.0,0.00021917,2]
[392527727,1761609049189,-696.39,0.00021917,2]
[392527728,1761609049199,-500.0,0.00021917,2]
[392527729,1761609049209,-500.0,0.00021917,2]
[392527730,1761609049219,-500.0,0.00021917,2]
[392527731,1761609049230,-500.0,0.00021917,2]
[392527732,1761609049241,-500.0,0.00021917,2]
[392527733,1761609049250,-284.63024337,0.00021917,2]
[392527734,1761609049260,-500.0,0.00021917,2]
[392527735,1761609049269,-500.0,0.00021917,2]
[392527736,1761609049278,-301.12253223,0.00021917,2]
[392527737,1761609049287,-500.0,0.00021917,2]
[392527738,1761609049298,-816.11,0.00021917,2]
[392527739,1761609049310,-500.0,0.00021917,2]
[392527740,1761609049319,-500.0,0.00021917,2]
[392527741,1761609049330,-500.0,0.00021917,2]
[392527742,1761609049341,-500.0,0.00021917,2]
[392527743,1761609049351,-1857.42,0.00021917,2]
[392527744,1761609049361,-500.0,0.00021917,2]
[392527745,1761609049371,-616.94011304,0.00021917,2]
[392527746,1761609049382,-500.0,0.00021917,2]
[392527747,1761609049393,-500.0,0.00021917,2]
[392527748,1761609049402,-500.0,0.00021917,2]
[392527749,1761609049414,-500.0,0.00021917,2]
[392527750,1761609049423,-500.0,0.00021917,2]
[392527751,1761609049434,-500.0,0.00021917,2]
[392527752,1761609049443,-907.83,0.00021917,2]
[392527753,1761609049452,-500.0,0.00021917,2]
[392527754,1761609049462,-669.0,0.00021917,2]
[392527755,1761609049472,-500.0,0.00021917,2]
[392527756,1761609049483,-1102.27,0.00021917,2]
[392527757,1761609049492,-500.0,0.00021917,2]
[392527758,1761609049502,-500.0,0.00021917,2]
[392527759,1761609049511,-500.0,0.00021917,2]
[392527760,1761609049521,-500.0,0.00021917,2]
[392527761,1761609049532,-569.67,0.00021917,2]
[392527762,1761609049542,-500.0,0.00021917,2]
[392527763,1761609049552,-500.0,0.00021917,2]
[392527764,1761609049562,-613.8,0.00021917,2]
[392527765,1761609049572,-500.0,0.00021917,2]
[392527766,1761609049582,-500.0,0.00021917,2]
[392527767,1761609049591,-500.0,0.00021917,2]
[392527768,1761609049601,-500.0,0.00021917,2]
[392527769,1761609049610,-500.0,0.00021917,2]
[392527770,1761609049620,-633.39533553,0.00021917,2]
[392527771,1761609049631,-1856.35,0.00021917,2]
[392527772,1761609049641,-550.83,0.00021917,2]
[392527773,1761609049650,-500.0,0.00021917,2]
[392527774,1761609049660,-500.0,0.00021917,2]
[392527775,1761609049670,-500.0,0.00021917,2]
[392527776,1761609049680,-500.0,0.00021917,2]
[392527777,1761609049690,-500.0,0.00021917,2]
[392527778,1761609049700,-500.0,0.00021917,2]
[392527779,1761609049711,-500.0,0.00021917,2]
[392527780,1761609049722,-500.0,0.00021917,2]
[392527781,1761609049732,-921.16,0.00021917,2]
[392527782,1761609049742,-1019.93,0.00021917,2]
[392527783,1761609049752,-500.0,0.00021917,2]
[392527784,1761609049761,-517.40970912,0.00021917,2]
[392527785,1761609049771,-500.0,0.00021917,2]
[392527786,1761609049780,-500.0,0.00021917,2]
[392527787,1761609049790,-1012.9,0.00021917,2]
[392527788,1761609049800,-500.0,0.00021917,2]
[392527789,1761609049810,-500.0,0.00021917,2]
[392527790,1761609049821,-938.87,0.00021917,2]
[392527791,1761609049832,-500.0,0.00021917,2]
[392527792,1761609049841,-500.0,0.00021917,2]
[392527793,1761609049851,-587.82,0.00021917,2]
[392527794,1761609049861,-678.4,0.00021917,2]
[392527795,1761609049870,-500.0,0.00021917,2]
[392527796,1761609049880,-1795.95,0.00021917,2]
[392527797,1761609049891,-500.0,0.00021917,2]
[392527798,1761609049901,-500.0,0.00021917,2]
[392527799,1761609049911,-500.0,0.00021917,2]
[392527800,1761609049920,-663.28,0.00021917,2]
[392527801,1761609049930,-794.43,0.00021917,2]
[392527802,1761609049940,-500.0,0.00021917,2]
[392527803,1761609049950,-500.0,0.00021917,2]
[392527804,1761609049959,-500.0,0.00021917,2]
[392527805,1761609049969,-500.0,0.00021917,2]
[392527806,1761609049978,-500.0,0.00021917,2]
[392527807,1761609049989,-500.0,0.00021917,2]
[392527808,1761609049999,-500.0,0.00021917,2]
[392527809,1761609050010,-1662.63,0.00021917,2]
[392527810,1761609050021,-500.0,0.00021917,2]
[392527811,1761609050031,-576.21,0.00021917,2]
[392527812,1761609050041,-599.76,0.00021917,2]
[392527813,1761609050051,-500.0,0.00021917,2]
[392527814,1761609050060,-500.0,0.00021917,2]
[392527815,1761609050069,-500.0,0.00021917,2]
[392527816,1761609050080,-572.84,0.00021917,2]
[392527817,1761609050090,-500.0,0.00021917,2]
[392527818,1761609050099,-500.0,0.00021917,2]
[392527819,1761609050109,-500.0,0.00021917,2]
[392527820,1761609050120,-500.0,0.00021917,2]
[392527821,1761609050135,-500.0,0.00021917,2]
[392527822,1761609050144,-166.88742489,0.00021917,2]
[392527823,1761609050155,-500.0,0.00021917,2]
[392527824,1761609050165,-500.0,0.00021917,2]
[392527825,1761609050175,-333.33114707,0.00021917,2]
[392527826,1761609050184,-341.61528065,0.00021917,2]
[392527827,1761609050195,-500.0,0.00021917,2]
[392527828,1761609050204,-500.0,0.00021917,2]
[392527829,1761609050214,-254.05463359,0.00021917,2]
[392527830,1761609050223,-500.0,0.00021917,2]
[392527831,1761609050232,-500.0,0.00021917,2]
[392527832,1761609050241,-1982.9,0.00021917,2]
[392527833,1761609050251,-743.82,0.00021917,2]
[392527834,1761609050260,-500.0,0.00021917,2]
[392527835,1761609050271,-500.0,0.00021917,2]
[392527836,1761609050281,-500.0,0.00021917,2]
[392527837,1761609050497,-500.0,0.00021917,2]
[392527838,1761609050507,-936.77,0.00021917,2]
[392527839,1761609050516,-474.32935782,0.00021917,2]
[392527840,1761609050526,-500.0,0.00021917,2]
[392527841,1761609050535,-500.0,0.00021917,2]
[392527842,1761609050544,-500.0,0.00021917,2]
[392527843,1761609050554,-500.0,0.00021917,2]
[392527844,1761609050563,-500.0,0.00021917,2]
[392527845,1761609050573,-677.28,0.00021917,2]
[392527846,1761609050582,-500.0,0.00021917,2]
[392527847,1761609050592,-500.0,0.00021917,2]
[392527848,1761609050602,-500.0,0.00021917,2]
[392527849,1761609050611,-814.53,0.00021917,2]
[392527850,1761609050620,-689.31,0.00021917,2]
[392527851,1761609050630,-500.0,0.00021917,2]
[392527852,1761609050640,-500.0,0.00021917,2]
[392527853,1761609050649,-500.0,0.00021917,2]
[392527854,1761609050658,-500.0,0.00021917,2]
[392527855,1761609050667,-500.0,0.00021917,2]
[392527856,1761609050677,-500.0,0.00021917,2]
[392527857,1761609050687,-503.55,0.00021917,2]
[392527858,1761609050696,-564.58,0.00021917,2]
[392527859,1761609050705,-500.0,0.00021917,2]
[392527860,1761609050714,-500.0,0.00021917,2]
[392527861,1761609050724,-500.0,0.00021917,2]
[392527862,1761609050733,-971.61,0.00021917,2]
[392527863,1761609050744,-471.60565393,0.00021917,2]
[392527864,1761609050754,-500.0,0.00021917,2]
[392527865,1761609050763,-500.0,0.00021917,2]
[392527866,1761609050773,-500.0,0.00021917,2]
[392527867,1761609050783,-500.0,0.00021917,2]
[392527868,1761609050792,-500.0,0.00021917,2]
[392527869,1761609050801,-981.08,0.00021917,2]
[392527870,1761609050810,-568.3,0.00021917,2]
[392527871,1761609050819,-500.0,0.00021917,2]
[392527872,1761609050829,-840.76,0.00021917,2]
[392527873,1761609050838,-500.0,0.00021917,2]
[392527874,1761609050847,-500.0,0.00021917,2]
[392527875,1761609050857,-416.48956252,0.00021917,2]
[392527876,1761609050866,-500.0,0.00021917,2]
[392527877,1761609050875,-500.0,0.00021917,2]
[392527878,1761609050884,-314.5951211,0.00021917,2]
[392527879,1761609050894,-716.42,0.00021917,2]
[392527880,1761609050904,-526.8,0.00021917,2]
[392527881,1761609050913,-500.0,0.00021917,2]
[392527882,1761609050923,-500.0,0.00021917,2]
[392527883,1761609050932,-680.24,0.00021917,2]
[392527884,1761609050942,-500.0,0.00021917,2]
[392527885,1761609050951,-836.87,0.00021917,2]
[392527886,1761609050960,-1339.17,0.00021917,2]
[392527887,1761609050969,-500.0,0.00021917,2]
[392527888,1761609050978,-500.0,0.00021917,2]
[392527889,1761609050988,-500.0,0.00021917,2]
[392527890,1761609050997,-500.0,0.00021917,2]
[392527891,1761609051007,-1475.19,0.00021917,2]
[392527892,1761609051019,-753.29,0.00021917,2]
[392527893,1761609051028,-500.0,0.00021917,2]
[392527894,1761609051038,-500.0,0.00021917,2]
[392527895,1761609051047,-1532.57,0.00021917,2]
[392527896,1761609051057,-500.0,0.00021917,2]
[392527897,1761609051066,-606.51422039,0.00021917,2]
[392527898,1761609051076,-500.0,0.00021917,2]
[392527899,1761609051088,-500.0,0.00021917,2]
[392527900,1761609051098,-500.0,0.00021917,2]
[392527901,1761609051108,-500.0,0.00021917,2]
[392527902,1761609051118,-500.0,0.00021917,2]
[392527903,1761609051135,-500.0,0.00021917,2]
[392527904,1761609051144,-500.0,0.00021917,2]
[392527905,1761609051155,-1748.45,0.00021917,2]
[392527906,1761609051166,-1051.37,0.00021917,2]
[392527907,1761609051176,-500.0,0.00021917,2]
[392527908,1761609051186,-526.66,0.00021917,2]